[Event "44th Chess Olympiad Open 2022"]
[Site "Chennai"]
[Date "2022.08.01"]
[Round "4.19"]
[White "Bjerre, Jonas Buhl"]
[Black "Kantans, Toms"]
[Result "0-1"]
[WhiteElo "2608"]
[BlackElo "2486"]
[Annotator "TA"]
[PlyCount "112"]
[EventDate "2022.??.??"]
[TimeControl "60"]

{[%evp 10,112,20,20,16,15,33,20,22,13,30,33,49,39,33,35,58,35,41,30,48,35,43,
26,44,38,23,17,24,27,47,33,84,102,115,105,150,46,48,45,36,45,45,60,68,30,49,34,
96,8,0,0,0,0,0,0,0,0,35,25,27,40,41,0,0,0,0,0,0,-40,-25,-29,-37,-53,-53,-56,
-17,-18,-12,-194,-163,-195,-175,-195,-195,-195,-195,-194,-190,-751,-732,-29967,
-5077,-29969,-29964,-29974,-29975,-29975,-29976,-29975,-29977,-29978,-29979,
-29974,-1291]} 1. d4 {[%emt 0:00:07]} Nf6 {[%emt 0:00:20]} 2. Nf3 {[%emt 0:00:
00]} g6 {[%emt 0:00:34]} 3. Nbd2 {[%emt 0:00:57]} d5 {[%emt 0:02:34]} 4. e3 {
[%emt 0:00:32]} Bg7 {[%emt 0:01:23]} 5. b4 {[%emt 0:00:27]} O-O {[%emt 0:02:10]
} 6. c4 {[%emt 0:01:12]} a5 {[%emt 0:03:56] D02:1 d4 d5 2 Nf3 sidelines,
including 2...Nf6 3 g3 and 2...Nf6 3 Bf4.} 7. b5 {[%emt 0:01:11]} c5 {[%emt 0:
00:00]} 8. Bb2 {[%emt 0:05:19]} Nbd7 {[%emt 0:08:57] The position is equal.} 9.
Be2 {[%emt 0:04:19]} a4 {[%emt 0:06:49]} 10. Rc1 {[%emt 0:06:43] [#]} dxc4 $146
{[%emt 0:08:31]} ({Predecessor:} 10... b6 11. Ne5 Nxe5 12. dxe5 Nd7 13. cxd5
Nxe5 14. O-O Qxd5 15. f4 Rd8 16. Nb1 Nd3 17. Bxg7 Kxg7 18. Nc3 Qd6 19. e4 Nxc1
20. Qxc1 Bb7 21. f5 Qe5 {0-1 (21) Chatalbashev,B (2547)-Krysa,L (2457) Graz
2015}) 11. Nxc4 {[%emt 0:02:15] dxc5 is the strong threat.} a3 {[%emt 0:01:44]}
12. Ba1 {[%emt 0:01:48] Threatens to win with dxc5.} ({Inferior is} 12. Bxa3
Rxa3 $1 13. Nxa3 Qa5+ 14. Nd2 Qxa3 $17) 12... Ne4 {[%emt 0:02:49]} 13. O-O {
[%emt 0:10:51]} cxd4 {[%emt 0:17:38]} 14. Bxd4 {[%emt 0:07:14]} Bxd4 {[%emt 0:
00:39]} 15. Qxd4 {[%emt 0:04:25]} Ndf6 {[%emt 0:00:39]} 16. Nb6 {[%emt 0:05:24]
} Rb8 {[%emt 0:00:59]} 17. Rfd1 $36 {[%emt 0:03:33] White is pushing.} Be6 {
[%emt 0:05:37]} 18. Rc2 {[%emt 0:04:57]} Bf5 {[%emt 0:00:00][%cal Ye4f2]} 19.
Rdc1 {[%emt 0:04:08]} Nd6 {[%emt 0:05:04]} 20. Rc3 {[%emt 0:04:59]} Bg4 {
[%emt 0:07:44]} (20... Bd7 $14) 21. Rxa3 $16 {[%emt 0:00:00]} Bxf3 {[%emt 0:04:
13]} 22. gxf3 {[%emt 0:00:21]} Nd7 {[%emt 0:01:16]} 23. Nd5 {[%emt 0:03:58]} (
23. Nxd7 $16 Qxd7 24. Rac3) 23... Nf5 $14 {[%emt 0:00:46]} 24. Qf4 {[%emt 0:04:
08]} e6 {[%emt 0:00:52]} 25. Nb4 {[%emt 0:01:28]} e5 {[%emt 0:02:23]} 26. Qe4 {
[%emt 0:02:49]} Nf6 {[%emt 0:01:08]} 27. Qc4 {[%emt 0:00:00]} ({Much worse is} 
27. Qxe5 Qd2 28. Nd3 (28. Rac3 Qxe2 29. Qxf6 Qxf3 $11) 28... Qxe2 29. Qxf6 Rbd8
$11) 27... Qe7 {[%emt 0:02:30][%cal Yb8c8]} 28. Rac3 $1 {[%emt 0:02:11]} Rbc8 {
[%emt 0:02:44] Against Qc5} (28... Rbd8 $14) 29. Qxc8 {[%emt 0:04:34]} ({
White should try} 29. Nd5 $16 Nxd5 30. Qxd5 Rxc3 31. Rxc3) 29... Rxc8 $11 {
[%emt 0:00:01]} 30. Rxc8+ {[%emt 0:00:05]} Kg7 {[%emt 0:00:03]} 31. Nd3 {
[%emt 0:01:18]} e4 {[%emt 0:02:05]} 32. R8c7 {[%emt 0:00:51]} Qd6 {[%emt 0:00:
04]} 33. Nf4 {[%emt 0:00:50]} g5 {[%emt 0:00:56]} 34. Ng2 {[%emt 0:00:00]} b6 {
[%emt 0:00:48] Prevents R7c5.} 35. f4 {[%emt 0:02:52]} h6 {[%emt 0:00:00]} 36.
a4 {[%emt 0:00:58]} Nd5 {[%emt 0:00:31][%csl Yc7,Yf4]} 37. R7c6 {[%emt 0:00:39]
} Qa3 {[%emt 0:00:05]} 38. fxg5 {[%emt 0:00:47]} hxg5 {[%emt 0:00:00]} 39. Bf1
{[%emt 0:01:53]} Qxa4 {[%emt 0:01:04]} 40. h3 {[%emt 0:01:38]} Qa3 {[%emt 0:00:
39]} 41. Rd1 {[%emt 0:04:03]} Nc3 {[%emt 0:08:40]} 42. Re1 {[%emt 0:01:46]} Ne7
{[%emt 0:06:52] Pair of Knights!} 43. Rxb6 {[%emt 0:03:04]} Ng6 {[%emt 0:00:15]
aiming for ...Ne5.} 44. Rxg6+ {[%emt 0:07:55] White does not recover from this.
} Kxg6 $19 {[%emt 0:00:06]} 45. h4 {[%emt 0:00:36] [#]} f6 $1 {[%emt 0:02:50]
[%cal Yf7f6,Yf6g5]} 46. hxg5 {[%emt 0:00:57]} fxg5 {[%emt 0:00:05]} 47. Be2 {
[%emt 0:02:16]} Kf5 {[%emt 0:07:07] Inhibits Bg4+. Black has strong
compensation.} 48. Bh5 {[%emt 0:02:26]} Qb2 {[%emt 0:00:57]} 49. Be8 $2 {
[%emt 0:01:49]} (49. Rf1) 49... Kg4 {[%emt 0:03:00]} 50. Kf1 {[%emt 0:05:16]}
Qd2 {[%emt 0:01:32]} (50... Kh3 $142 51. Kg1 Qd2 52. Bf7 Qd6 53. Kf1 Qc5 54.
Bh5 Qxb5+ 55. Be2 Qb6 56. Bh5 Qa6+ 57. Be2 Qd6 58. Bc4 Qc6 59. Be2 Qe6 60. Bd1
Qc6 61. Bh5 Qa6+ 62. Be2 Qd6 63. Bc4 Qc6 64. Be2 Qd6) 51. Kg1 {[%emt 0:02:35]}
Kh3 {[%emt 0:00:59] Black mates.} 52. b6 {[%emt 0:00:00]} Qd6 {[%emt 0:00:28]}
53. Kf1 {[%emt 0:00:24]} Kh2 {[%emt 0:01:40]} 54. Bh5 {[%emt 0:00:31]} Qxb6 {
[%emt 0:00:22]} 55. Bg4 {[%emt 0:01:01]} Qb5+ {[%emt 0:00:00]} 56. Be2 {
[%emt 0:00:31]} Qf5 {[%emt 0:00:32] Weighted Error Value: White=0.49/Black=0.
22 (precise)} (56... Nxe2 $142 57. Rxe2 Qd7 58. Nf4 gxf4 59. exf4 Qd1+ 60. Re1
Qd3+ 61. Re2 e3 62. fxe3+ Kg3 63. Ke1 Kf3 64. Rh2 Qxe3+ 65. Kd1 Qg1+ 66. Kd2
Qxh2+ 67. Kc3 Qxf4 68. Kc2 Qb4 69. Kc1 Ke2 70. Kc2 Ke3 71. Kc1 Kd3 72. Kd1 Qd2#
) 0-1

[Event "44th Chess Olympiad Open 2022"]
[Site "Chennai"]
[Date "2022.08.01"]
[Round "4.19"]
[White "Thybo, Jesper Sondergaard"]
[Black "Golubovskis, Maksims"]
[Result "1-0"]
[WhiteElo "2520"]
[BlackElo "2219"]
[Annotator "TA"]
[PlyCount "107"]
[EventDate "2022.??.??"]
[TimeControl "60"]

{[%evp 9,107,11,9,3,11,0,0,0,0,0,4,11,40,41,40,-14,8,0,45,36,41,45,49,41,81,21,
70,75,102,110,149,153,129,154,148,39,190,168,268,277,266,251,291,201,195,184,
189,190,221,230,215,154,223,214,231,205,241,236,228,235,224,216,261,247,428,
423,413,353,517,480,645,595,733,623,774,776,770,763,6813,29971,29957,29969,
29967,29958,5389,6894,29979,29980,29980,29981,29981,29982,29985,29985,29985,
29986,29990,29991,29991,29992]} 1. e4 {[%emt 0:00:07]} c5 {[%emt 0:00:09]} 2.
Nf3 {[%emt 0:00:10]} d6 {[%emt 0:00:08]} 3. d4 {[%emt 0:00:24]} cxd4 {[%emt 0:
00:00]} 4. Qxd4 {[%emt 0:00:09]} Nc6 {[%emt 0:00:07]} 5. Qe3 {[%emt 0:00:21]}
Nf6 {[%emt 0:00:12]} 6. Be2 {[%emt 0:00:29] B53: Sicilian: 2...d6: Lines with
Qxd4.} g6 {[%emt 0:00:16]} 7. h3 {[%emt 0:00:22]} Bg7 {[%emt 0:00:09]} 8. O-O {
[%emt 0:00:13] The position is equal.} O-O {[%emt 0:00:05]} 9. Rd1 {[%emt 0:00:
00]} b6 {[%emt 0:00:09]} 10. c4 {[%emt 0:04:39]} Bb7 {[%emt 0:03:48]} 11. Nc3 {
[%emt 0:00:19]} Nd7 {[%emt 0:01:55]} 12. Bd2 {[%emt 0:12:06] [#]} (12. Rb1 $14)
12... Rc8 $146 {[%emt 0:04:32]} ({Predecessor:} 12... Nc5 13. Rac1 e6 14. Be1
Qe7 15. Rb1 Rfd8 16. b4 Nd7 17. a3 Rac8 18. Kh1 Nde5 {½-½ (28) Priyadharshan,
K (2460)-Ashwin,J (2442) Saint Louis 2014}) 13. Rac1 {[%emt 0:01:23]} Nce5 {
[%emt 0:11:07]} 14. Nxe5 {[%emt 0:01:59]} Nxe5 {[%emt 0:02:38]} 15. b3 {
[%emt 0:01:24][%cal Yb2b3,Yb3b4]} Nc6 {[%emt 0:04:12]} 16. Be1 {[%emt 0:02:45]}
Qd7 {[%emt 0:11:24]} 17. f4 {[%emt 0:14:37]} ({White should try} 17. Nb5 $16)
17... Rcd8 {[%emt 0:05:15]} (17... e5 $1 $11 {was preferrable.}) 18. Bh4 $14 {
[%emt 0:02:40]} Qe6 {[%emt 0:11:08]} 19. Nd5 {[%emt 0:05:05]} f5 {[%emt 0:03:
45] Prevents Bg4.} 20. b4 {[%emt 0:08:04] White is more active.} Rd7 {[%emt 0:
12:49]} (20... fxe4 $2 21. b5 Na5 22. Bxe7) 21. Bf3 {[%emt 0:08:01]} Kh8 {
[%emt 0:05:17]} 22. Kh1 {[%emt 0:00:36]} (22. b5 $16 Na5 23. Qe2) 22... Nd8 {
[%emt 0:04:05] Loses the game.} (22... Qf7 $1 $14) 23. Re1 $1 $18 {[%emt 0:02:
49]} fxe4 {[%emt 0:11:31]} (23... Nc6 {was necessary.}) 24. Bg4 {[%emt 0:01:42]
Skewer, Zwischenzug} (24. Bxe4 Qf7 25. Bd3 e6 26. Bxd8 exd5 $11) (24. Qxe4 Qxe4
25. Bxe4 e6 $15) 24... Rf5 {[%emt 0:00:02]} 25. Qxe4 {[%emt 0:01:13] Pin} (25.
Bxf5 gxf5 26. Qa3 Bxd5 27. cxd5 Qxd5 $16) 25... Qf7 {[%emt 0:01:53]} 26. Bxf5 {
[%emt 0:02:12]} (26. Bxe7 $6 Bxd5 27. cxd5 Rxf4 28. Bxd7 Rxe4 29. Rxe4 Be5 30.
Bxd8 Qxd7 $16) 26... gxf5 {[%emt 0:00:02]} 27. Qe2 {[%emt 0:04:19][%cal Rh4e7]}
e5 {[%emt 0:00:15]} 28. Bg3 {[%emt 0:00:00][%cal Rf4e5]} (28. fxe5 dxe5 29.
Bxd8 Rxd8 $16) 28... e4 {[%emt 0:00:25]} 29. Red1 {[%emt 0:01:21]} Ne6 {
[%emt 0:00:19]} 30. Qe3 {[%emt 0:00:50]} h5 {[%emt 0:00:38]} (30... h6 $16 31.
Bf2 Bc6) 31. Be1 {[%emt 0:01:00][%cal Yg3e1,Ye1c3,Yc3d2,Yd2e3]} Bxd5 {[%emt 0:
01:13]} 32. Rxd5 {[%emt 0:06:32] Rcd1 is the strong threat.} Nc7 {[%emt 0:00:
01]} 33. Rdd1 {[%emt 0:00:27]} Kh7 {[%emt 0:01:48]} 34. Bc3 {[%emt 0:01:08]}
Bh6 {[%emt 0:00:02]} 35. Bd2 {[%emt 0:07:24]} Ne6 {[%emt 0:01:42] [#]} 36. Qf2
{[%emt 0:00:16]} b5 $2 {[%emt 0:00:52]} (36... Nd8 37. g3 Bg7) 37. c5 {[%emt 0:
01:31][%cal Yc4c5,Yc5c6]} d5 {[%emt 0:01:37]} 38. c6 {[%emt 0:00:32]} Rd6 {
[%emt 0:00:02]} (38... Rd8 {was called for.} 39. Qh4 Ra8) 39. Be3 {[%emt 0:02:
02]} Qc7 {[%emt 0:00:00]} 40. Qe2 {[%emt 0:02:02]} Kg6 {[%emt 0:03:21]} 41.
Qxb5 {[%emt 0:32:19]} d4 {[%emt 0:30:33] [#]} 42. g4 $1 {[%emt 0:00:00]} hxg4 {
[%emt 0:00:00] [#]} 43. hxg4 $1 {[%emt 0:00:00]} Bxf4 {[%emt 0:00:00]} (43...
Kh7 44. Qxf5+) 44. Qxf5+ {[%emt 0:00:00]} Kg7 {[%emt 0:00:00]} 45. Bxf4 {
[%emt 0:00:00]} Nxf4 {[%emt 0:00:00]} 46. Qe5+ {[%emt 0:00:00]} ({Inferior is} 
46. Qxf4 Rh6+ 47. Qxh6+ Kxh6 $11) 46... Kh7 {[%emt 0:00:00]} 47. Qxe4+ {
[%emt 0:00:00]} Kg7 {[%emt 0:00:00]} 48. Qe5+ {[%emt 0:00:00] White mates.} Kh7
{[%emt 0:00:00]} 49. Kg1 {[%emt 0:00:00]} Ng6 {[%emt 0:00:00]} 50. Qh2+ {
[%emt 0:00:00]} Nh4 {[%emt 0:00:00]} 51. Qxh4+ {[%emt 0:00:00]} Rh6 {[%emt 0:
00:00]} 52. Qf2 {[%emt 0:00:00]} Rh3 {[%emt 0:00:00]} 53. Rxd4 {[%emt 0:00:00]}
Rg3+ {[%emt 0:00:00]} 54. Kf1 {[%emt 0:00:00] Weighted Error Value: White=0.15
(very precise) /Black=0.51} 1-0

[Event "44th Chess Olympiad Open 2022"]
[Site "Chennai"]
[Date "2022.08.01"]
[Round "4.19"]
[White "Reimanis, Ritvars"]
[Black "Andersen, Mads"]
[Result "1/2-1/2"]
[WhiteElo "2377"]
[BlackElo "2587"]
[Annotator "TA"]
[PlyCount "61"]
[EventDate "2022.??.??"]
[TimeControl "60"]

{[%evp 22,61,12,0,0,0,0,3,4,-44,-29,-27,0,-7,-9,-9,-11,-16,0,0,0,0,0,0,0,0,5,5,
5,5,5,5,5,4,5,0,0,0,0,0,0,0]} 1. d4 {[%emt 0:00:04]} d5 {[%emt 0:00:07]} 2. c4
{[%emt 0:00:05]} c6 {[%emt 0:00:06]} 3. Nf3 {[%emt 0:00:05]} Nf6 {[%emt 0:00:
00]} 4. e3 {[%emt 0:00:06]} e6 {[%emt 0:00:06]} 5. Nc3 {[%emt 0:00:20]} Nbd7 {
[%emt 0:00:08]} 6. Qc2 {[%emt 0:00:19]} Bd6 {[%emt 0:00:13]} 7. Be2 {[%emt 0:
00:00]} O-O {[%emt 0:00:17]} 8. O-O {[%emt 0:00:27]} b6 {[%emt 0:06:37]} 9. e4
{[%emt 0:25:30]} Nxe4 {[%emt 0:01:45]} 10. Nxe4 {[%emt 0:03:32]} dxe4 {[%emt 0:
00:00]} 11. Qxe4 {[%emt 0:00:06]} Bb7 {[%emt 0:00:11]} 12. Rd1 {[%emt 0:28:49]}
Qc7 {[%emt 0:00:25] D45: Semi-Slav: 5 e3.} 13. Bd3 {[%emt 0:00:55][%csl Gd3]
[%cal Re4h7] [#]} g6 $1 {[%emt 0:00:18]} ({Much less strong is} 13... Nf6 14.
Qh4 $16) 14. Qh4 {[%emt 0:07:20][%cal Yc4c5]} c5 {[%emt 0:11:32]} 15. Be4 {
[%emt 0:00:43]} (15. d5 $11 {is more appropriate.}) 15... Bxe4 $15 {[%emt 0:00:
00]} 16. Qxe4 {[%emt 0:00:02]} Rfe8 {[%emt 0:00:56] [#]} (16... cxd4 $5 {
[%cal Re6e5]} 17. Bh6 {[#]} (17. Rxd4 e5 $15) (17. Qxd4 Ne5 $17) 17... e5 $1
$11) 17. Bg5 $146 {[%emt 0:14:44] The position is equal.} ({Predecessor:} 17.
b3 cxd4 18. Qxd4 Bc5 19. Qh4 e5 20. Bb2 Re7 21. Rd5 f5 22. Qg5 Rae8 23. Re1 {
1-0 (44) Baron,D (2380)-Mokrys,C (2430) ICCF corr 1995}) 17... e5 {[%emt 0:00:
00]} 18. dxe5 {[%emt 0:00:31]} Nxe5 {[%emt 0:00:22]} 19. g3 {[%emt 0:00:29]}
Nxf3+ {[%emt 0:00:53]} 20. Qxf3 {[%emt 0:00:01]} Be5 {[%emt 0:00:23]} 21. Rd2 {
[%emt 0:00:27]} Bd4 {[%emt 0:02:28]} 22. Bf6 {[%emt 0:01:09] Prevents Qe5.}
Bxf6 {[%emt 0:05:36]} 23. Qxf6 {[%emt 0:00:02]} Qe7 {[%emt 0:00:39]} 24. Qxe7 {
[%emt 0:00:44]} Rxe7 $11 {[%emt 0:00:03] Endgame KRR-KRR} 25. Rad1 {[%emt 0:00:
17]} Kf8 {[%emt 0:00:34]} 26. Kg2 {[%emt 0:01:31]} Rae8 {[%emt 0:00:00]} 27. b3
{[%emt 0:00:15]} h5 {[%emt 0:07:13]} 28. h4 {[%emt 0:00:17]} Re6 {[%emt 0:03:
14]} 29. Kf1 {[%emt 0:02:15]} R8e7 {[%emt 0:04:17]} 30. Rd8+ {[%emt 0:00:32]}
Kg7 {[%emt 0:00:57]} 31. R8d2 {[%emt 0:01:13] Weighted Error Value: White=0.04
(flawless) /Black=0.02 (flawless)} 1/2-1/2

[Event "44th Chess Olympiad Open 2022"]
[Site "Chennai"]
[Date "2022.08.01"]
[Round "4.19"]
[White "Ungurs, Edgars"]
[Black "Haubro, Martin"]
[Result "1-0"]
[WhiteElo "2206"]
[BlackElo "2411"]
[Annotator "TA"]
[PlyCount "117"]
[EventDate "2022.??.??"]
[TimeControl "60"]

{[%evp 15,117,14,18,16,25,0,5,18,20,13,16,19,12,12,14,12,44,36,35,22,29,27,32,
32,19,0,27,0,0,0,0,0,13,13,18,13,20,-11,18,0,33,28,33,22,129,76,76,55,55,41,38,
30,72,44,58,56,66,71,66,75,64,39,47,23,48,47,45,40,48,42,102,61,61,61,61,83,60,
54,106,91,122,129,222,206,458,458,432,387,601,559,612,582,604,555,823,798,1158,
1085,29993,29994,29994,29995,29995,29996]} 1. e4 {[%emt 0:00:04]} e5 {[%emt 0:
00:00]} 2. Nf3 {[%emt 0:00:13]} Nc6 {[%emt 0:00:03]} 3. Bb5 {[%emt 0:00:15]} a6
{[%emt 0:00:04]} 4. Ba4 {[%emt 0:00:07]} Nf6 {[%emt 0:00:03]} 5. O-O {[%emt 0:
00:00]} Be7 {[%emt 0:00:04]} 6. d3 {[%emt 0:00:20]} b5 {[%emt 0:00:05]} 7. Bb3
{[%emt 0:00:07]} d6 {[%emt 0:01:08]} 8. a4 {[%emt 0:00:45]} Bd7 {[%emt 0:00:06]
} 9. Bd2 {[%emt 0:01:33] C84: Closed Ruy Lopez: Unusual White 6th moves.} O-O {
[%emt 0:10:46]} 10. axb5 {[%emt 0:00:59] 10.h3 might become the main line.}
axb5 {[%emt 0:00:07]} 11. Nc3 {[%emt 0:00:17] The position is equal.} Na5 {
[%emt 0:22:25]} 12. Nd5 {[%emt 0:01:07]} Nxd5 {[%emt 0:00:30]} 13. Bxd5 {
[%emt 0:00:08]} c6 {[%emt 0:00:11]} 14. Ba2 {[%emt 0:00:26]} Nb7 {[%emt 0:00:
00]} 15. b4 {[%emt 0:04:49]} Kh8 {[%emt 0:11:16] [#]} 16. Qe2 $146 {[%emt 0:00:
00]} ({Predecessor:} 16. c4 bxc4 17. Bxc4 Bg4 18. Rxa8 Qxa8 19. h3 Bh5 20. g4
Bg6 21. Qa1 Rb8 22. Rb1 {1-0 (77) Kobalia,M (2634)-Korotylev,A (2616)
Krasnoyarsk 2007}) 16... f5 {[%emt 0:06:19]} 17. h3 {[%emt 0:08:58]} Qe8 {
[%emt 0:02:08]} 18. Bb3 {[%emt 0:05:13]} Qg6 {[%emt 0:04:23]} 19. Rxa8 {
[%emt 0:08:04]} (19. Kh2 {keeps more tension.} Qh5 20. Rxa8 Rxa8 21. exf5 Bxf5
22. Re1) 19... Rxa8 {[%emt 0:00:04]} 20. Kh1 {[%emt 0:00:17]} Nd8 {[%emt 0:00:
00]} 21. Re1 {[%emt 0:04:23]} (21. exf5 {looks sharper.} Bxf5 22. Nd4 Bf6 23.
Nxf5 Qxf5 24. d4) 21... fxe4 {[%emt 0:03:12]} 22. dxe4 {[%emt 0:01:07]} Ne6 {
[%emt 0:00:00]} 23. Qd3 {[%emt 0:02:41] aiming for Nxe5.} Qe8 {[%emt 0:05:43]}
24. Be3 {[%emt 0:02:34]} h6 {[%emt 0:02:12]} 25. Rd1 {[%emt 0:04:39][%cal
Yf3e5]} Nf8 {[%emt 0:06:14]} 26. Ng1 {[%emt 0:03:50][%cal Yf3g1,Yg1e2,Ye2g3]}
Be6 {[%emt 0:05:24]} 27. Ne2 {[%emt 0:01:35]} Qf7 {[%emt 0:03:44]} 28. Bxe6 {
[%emt 0:02:59]} Qxe6 {[%emt 0:01:22]} 29. Ng3 {[%emt 0:00:48]} Bf6 {[%emt 0:04:
01]} (29... Rd8 $1 $11 {keeps the balance.}) 30. Bb6 {[%emt 0:03:14]} ({
White should try} 30. Qxd6 Rd8 31. Qxd8 Bxd8 32. Rxd8) 30... Bd8 {[%emt 0:00:
00]} 31. Bxd8 {[%emt 0:02:29]} Rxd8 {[%emt 0:00:03]} 32. Ra1 {[%emt 0:00:15]}
Ng6 {[%emt 0:01:09]} 33. Ra7 {[%emt 0:01:14]} Rd7 {[%emt 0:00:07]} 34. Ra6 {
[%emt 0:00:54]} Ne7 {[%emt 0:02:08]} 35. Nf5 {[%emt 0:01:31]} Qf6 {[%emt 0:00:
00]} (35... Nxf5 36. exf5 Qd5 37. Qxd5 cxd5 38. c3 $16) 36. Nxe7 {[%emt 0:00:
00] 0x0.0005eb40a673dp-1022s more active pieces.} Rxe7 $14 {[%emt 0:00:05]
Endgame KQR-KQR} 37. f3 {[%emt 0:00:38]} Rc7 {[%emt 0:00:29]} 38. Ra8+ {
[%emt 0:00:30]} Kh7 {[%emt 0:00:04]} 39. Qb3 {[%emt 0:00:10]} Qf4 {[%emt 0:01:
43]} 40. Qg8+ {[%emt 0:00:35]} Kg6 {[%emt 0:00:04]} 41. Qe6+ {[%emt 0:03:30]}
Qf6 {[%emt 0:04:42]} 42. Re8 {[%emt 0:04:54]} h5 {[%emt 0:00:00]} (42... Qxe6
$1 $14 43. Rxe6+ Kf7 44. Rxd6 Ke7) 43. Qb3 {[%emt 0:13:10]} Re7 {[%emt 0:04:05]
Against Re6} 44. Rc8 {[%emt 0:02:42]} Ra7 {[%emt 0:06:22] [#] ( -> ...Ra1+)}
45. Qc3 {[%emt 0:00:53] Inhibits Ra1+.} (45. Rxc6 Ra1+) 45... Qf4 {[%emt 0:00:
54] ...Qc1+ is the strong threat.} 46. Rxc6 {[%emt 0:00:00]} Qc1+ {[%emt 0:00:
13]} (46... Kh7 $1 $14 47. Rxd6 Qc1+ 48. Kh2 Qf4+ 49. Kg1 Qc1+ 50. Kh2 Qf4+ 51.
Kg1 Qc1+ 52. Kh2) 47. Kh2 $16 {[%emt 0:00:07]} Qf4+ {[%emt 0:00:03]} 48. Kg1 {
[%emt 0:03:04]} Qc1+ {[%emt 0:00:04]} (48... Kh7 $16) 49. Kf2 $18 {[%emt 0:00:
27]} Ra1 $2 {[%emt 0:00:15]} (49... Ra2 50. Qd3 (50. Rxd6+ Kh7 $16) 50... Kh7
51. Qxd6 Rxc2+ 52. Rxc2 Qxc2+ 53. Kg3 h4+ 54. Kxh4 Qxg2) 50. Rxd6+ {[%emt 0:00:
35]} Kh7 {[%emt 0:00:06] Hoping for ...h4.} 51. Qd2 {[%emt 0:00:43]} Qg1+ {
[%emt 0:02:23]} (51... h4 $142 52. Qxc1 Rxc1) 52. Kg3 {[%emt 0:00:22]} Rf1 {
[%emt 0:00:54][%cal Yf1f2]} 53. h4 {[%emt 0:01:23]} ({Not} 53. Rd5 $2 {[#]} Rf2
$3 54. Qxf2 h4+ 55. Kg4 Qxf2 $19) 53... Qa7 {[%emt 0:00:52]} 54. Re6 {[%emt 0:
01:51]} ({Worse is} 54. Qg5 Qf2+ 55. Kh2 Qg1+ 56. Kh3 Rxf3+ 57. gxf3 Qh1+ 58.
Kg3 Qg1+ 59. Kh3 Qh1+ 60. Kg3 Qg1+ 61. Kh3 $11) 54... Qa1 {[%emt 0:00:56]} 55.
c3 {[%emt 0:00:42]} (55. Qg5 $2 {gets mated.} Qe1+ 56. Kh3 Rh1#) 55... Rh1 {
[%emt 0:00:29]} 56. Rxe5 {[%emt 0:00:58]} Qg1 {[%emt 0:00:25]} 57. Rxh5+ {
[%emt 0:00:23] White mates.} Kg6 {[%emt 0:00:06]} 58. Qg5+ {[%emt 0:00:35]} Kf7
{[%emt 0:00:03]} 59. Qd5+ {[%emt 0:00:23] Weighted Error Value: White=0.09 
(flawless) /Black=0.41} 1-0